Cogmind - Beta 12 @@@ ROGUE MODE // 2023.07.05 @ 23:00:34 Player: zapruda Result: Destroyed by Enhanced Grunt with Neutron Cannon Performance ------------- Evolutions (3) 1500 Regions Visited (9) 1800 Robots Destroyed (105) 525 Value Destroyed (3695) 3695 Prototype IDs (19) 380 Alien Tech Used (0) 0 Bonus (1291) 1291 TOTAL SCORE: 9191 Bonus ------- High Alert Combat Kills 701 Follower Combat Kills 137 Aligned with FarCom 300 Met Data Miner 300 Friendly Fire -147 Cogmind --------- Core Integrity 0/700 Matter 257/300 Energy 8/350 System Corruption 4% Temperature Cool (0) Movement Core (200) Ox3 Location -7/Data Miner Parts ------- > --- POWER (2) -------- (None) > --- PROPULSION (4) --- Advanced Medium Treads > --- UTILITY (5) ------ High-capacity Battery Hacking Suite Hacking Suite Hacking Suite > --- WEAPON (2) ------- Lightning Gun Heavy Particle Gun > --- INVENTORY (5) ---- Improved Cooling System Advanced Variable Charge Gun YOLO Cannon Gauss Rifle Peak State ------------ > --- POWER ------------ Improved Deuterium Engine Heavy Deuterium Engine > --- PROPULSION ------- Armored Huge Wheel Armored Huge Wheel > --- UTILITY ---------- Improved Cooling System Large Storage Unit High-capacity Battery Improved Medium Armor Plating Hacking Suite > --- WEAPON ----------- Lightning Gun Advanced Variable Charge Gun > --- INVENTORY -------- Advanced Medium Treads Advanced Medium Treads Improved Cooling System Compact Matter Pod Matter Filter Improved Shield Generator Hacking Suite Hacking Suite Heavy Particle Gun Advanced Variable Charge Gun YOLO Cannon Gauss Rifle Gauss Rifle Rocket Array [Rating: 58] Favorites ----------- Power Light Ion Engine Engine Light Ion Engine Power Core Light Nuclear Core Propulsion Improved Treads Treads Improved Treads Leg Aluminum Leg Wheel Armored Huge Wheel Utility Large Storage Unit Device Improved Shield Generator Storage Large Storage Unit Processor Improved Targeting Computer Hackware Hacking Suite Protection Light Armor Plating Weapon Rocket Array Energy Gun Advanced Variable Charge Gun Energy Cannon YOLO Cannon Ballistic Gun Light Assault Rifle Launcher Rocket Array Build | -11 -10 -10 -10 -9 -8 -7 -7 -7 -7 ------- Run | Jun Mat Min Exi Min Mat Fac Low Low Dat Slots Evolved 6 | . . . . . 4 2 . . . Power 1 | . . . . . 1 . . . . Propulsion 2 | . . . . . 1 1 . . . Utility 3 | . . . . . 2 1 . . . Weapon . | . . . . . . . . . . Parts Attached 57 | . 3 . 6 . 17 18 4 6 3 Power 5 | . . . . . 2 3 . . . Engine 4 | . . . . . 2 2 . . . Core 1 | . . . . . . 1 . . . Reactor . | . . . . . . . . . . Propulsion 7 | . 2 . . . 1 1 . 3 . Treads 4 | . 2 . . . . . . 2 . Leg . | . . . . . . . . . . Wheel 3 | . . . . . 1 1 . 1 . Hover . | . . . . . . . . . . Flight . | . . . . . . . . . . Utility 22 | . 1 . 3 . 4 9 2 1 2 Device 7 | . . . . . 2 4 1 . . Storage 4 | . . . 2 . . 1 1 . . Processor 2 | . . . 1 . 1 . . . . Hackware 5 | . . . . . . 2 . 1 2 Protection 4 | . 1 . . . 1 2 . . . Artifact . | . . . . . . . . . . Weapon 23 | . . . 3 . 10 5 2 2 1 Energy Gun 10 | . . . 1 . 2 4 1 1 1 Energy Cannon 3 | . . . 2 . 1 . . . . Ballistic Gun 5 | . . . . . 4 . . 1 . Ballistic Cannon . | . . . . . . . . . . Launcher 5 | . . . . . 3 1 1 . . Special Weapon . | . . . . . . . . . . Impact Weapon . | . . . . . . . . . . Slashing Weapon . | . . . . . . . . . . Piercing Weapon . | . . . . . . . . . . Special Melee Weapon . | . . . . . . . . . . Unidentified Prototypes 9 | . . . 3 . 2 4 . . . Parts Lost 19 | . . . . . 1 5 4 5 4 Power 4 | . . . . . 1 1 1 1 . Propulsion 4 | . . . . . . . . 2 2 Utility 7 | . . . . . . 3 2 1 1 Weapon 4 | . . . . . . 1 1 1 1 Highest Loss Streak 4 | . . . . . 1 4 3 3 4 To Critical Strikes 1 | . . . . . . . . 1 . Average Slot Usage (%) 81 | . 88 100 86 85 69 81 74 72 74 Engine 11 | . 14 14 14 14 11 13 7 2 . Treads 12 | . 4 28 28 28 14 . . 3 14 Leg 1 | . 23 . . . . . . . . Wheel 6 | . . . . . 3 14 15 12 6 Device 5 | . . . . . 10 7 13 7 6 Storage 15 | . 14 14 15 28 10 8 20 23 23 Hackware 3 | . . . . . . 11 . 6 7 Protection 5 | . 4 14 6 . 2 6 1 . . Energy Gun 2 | . . . . . . 3 8 6 7 Energy Cannon 2 | . . . 7 14 4 . . . . Ballistic Gun 10 | . 28 28 13 . 4 5 . 2 6 Launcher 2 | . . . . . 3 5 5 4 . Naked Turns . | . . . . . . . . . . Heaviest Build 63 | 11 14 14 45 45 62 63 63 53 34 Greatest Support 60 | 20 46 46 46 46 46 56 56 60 60 Greatest Overweight (x) 1 | . . . . . 1 1 1 1 . Average Overweight (x) . | . . . . . . . . . . Largest Inventory Capacity 15 | 8 8 8 15 15 15 15 15 15 15 Average Capacity 12 | 8 8 8 8 15 15 15 15 15 14 Most Carried 15 | 6 8 8 8 9 15 15 15 14 8 Average Carried 10 | 6 6 6 8 8 12 14 14 11 7 Final Capacity 15 | 8 8 8 15 15 15 15 15 15 5 Final Carried 15 | 6 6 8 8 9 15 15 14 8 5 Class Distribution -------------------- 86% | Mutant 13% | Hacker-Mutant Dominant Class ---------------- Mutant | -10/Materials Mutant | -10/Mines Mutant | -10/Exiles Mutant | -9/Mines Mutant | -8/Materials Hacker-Mutant | -7/Factory Mutant | -7/Lower Caves Mutant | -7/Lower Caves Mutant | -7/Data Miner Resources | -11 -10 -10 -10 -9 -8 -7 -7 -7 -7 ----------- Run | Jun Mat Min Exi Min Mat Fac Low Low Dat Matter Collected 1879 | 200 40 83 . 19 445 727 214 151 . Remotely . | . . . . . . . . . . Salvage Created 2666 | . 58 90 . . 547 1195 380 396 . Parts 180 | . 5 12 . . 50 76 21 16 . Haulers Intercepted 1 | . . . . . . 1 . . . Recyclers Shooed 1 | . 1 . . . . . . . . Parts Field Recycled . | . . . . . . . . . . Retrieved Matter . | . . . . . . . . . . Parts Self-Destructed 26 | . . . . . . . 16 10 . Prevented . | . . . . . . . . . . Kills | -11 -10 -10 -10 -9 -8 -7 -7 -7 -7 ------- Run | Jun Mat Min Exi Min Mat Fac Low Low Dat Combat Hostiles Destroyed 79 | . 1 3 . . 23 25 12 15 . Guns 17 | . 1 3 . . . 5 5 3 . Cannons 4 | . . . . . 4 . . . . AOE 54 | . . . . . 15 20 7 12 . Classes Destroyed 17 | . 2 3 . . 3 9 . . . Worker 8 | . . 1 . . 4 3 . . . Builder 7 | . . . . . 5 2 . . . Tunneler 2 | . . 1 . . . 1 . . . Hauler 1 | . . . . . . 1 . . . Recycler 2 | . . . . . . 2 . . . Mechanic 1 | . . . . . . 1 . . . Operator 4 | . 1 . . . . 3 . . . Watcher 1 | . . . . . . 1 . . . Swarmer 18 | . . 2 . . 9 . 2 5 . Grunt 33 | . 1 1 . . 10 9 6 6 . Brawler 2 | . . . . . . 2 . . . Duelist 3 | . . . . . 1 . . 2 . Protector 3 | . . . . . . 3 . . . Sentry 6 | . . . . . 3 1 1 1 . Specialist 3 | . . . . . . 3 . . . Hunter 8 | . . . . . . 5 2 1 . Programmer 3 | . . . . . . 2 1 . . Decomposer 1 | . . . . . . . . 1 . Best Kill Streak 17 | . 1 2 . . 8 17 5 7 . Combat Bots Only 15 | . 1 2 . . 6 15 3 7 . Max Kills in Single Turn 8 | . 1 1 . . 4 8 3 4 . Gunslinging . | . . . . . . . . . . Exploded 8 | . . . . . 3 8 3 4 . Melee . | . . . . . . . . . . Uniques/NPCs Destroyed . | . . . . . . . . . . Combat | -11 -10 -10 -10 -9 -8 -7 -7 -7 -7 -------- Run | Jun Mat Min Exi Min Mat Fac Low Low Dat Damage Taken 4288 | . 45 147 . . 697 1110 695 863 731 Core 843 | . 12 12 . . 107 157 78 177 300 Absorbed by Shields 529 | . . . . . 194 228 71 36 . Core Remaining (%) 90 | 100 . . . 90 80 . . . . Volleys Fired 162 | . 11 13 . . 22 66 22 22 6 Largest 2 | . 2 2 . . 2 2 2 2 2 Hottest 135 | . 40 40 . . 100 135 135 125 83 Shots Fired 233 | . 22 26 . . 23 79 44 31 8 Gun 183 | . 22 26 . . 1 70 36 20 8 Cannon 13 | . . . . . 13 . . . . Launcher 37 | . . . . . 9 9 8 11 . Special . | . . . . . . . . . . Kinetic 111 | . 22 26 . . 1 44 . 11 7 Thermal 67 | . . . . . 13 22 22 9 1 Explosive 37 | . . . . . 9 9 8 11 . Electromagnetic 18 | . . . . . . 4 14 . . Robot Hit Streak 9 | . 7 7 . . 7 7 9 6 3 Robot Miss Streak 7 | . 2 2 . . 7 6 6 5 1 Penetration Max 1 | . . . . . . 1 . . 1 Secondary Targets 1 | . . 1 . . . . . . . Max Gunslinging Chain 1 | . . 1 . . . . . . . Shots Hit Robots 153 | . 14 15 . . 17 50 28 24 5 Core Hits 263 | . 4 8 . . 47 132 32 37 3 Critical Kills 4 | . . . . . 4 . . . . Critical Parts Destroyed 2 | . . . . . . 2 . . . Critical Strikes 7 | . . . . . 4 3 . . . Meltdown 4 | . . . . . 4 . . . . Destroy 3 | . . . . . . 3 . . . Melee Attacks . | . . . . . . . . . . Impact . | . . . . . . . . . . Slashing . | . . . . . . . . . . Piercing . | . . . . . . . . . . Sneak Attacks . | . . . . . . . . . . Combat Hostiles . | . . . . . . . . . . Follow-up Attacks . | . . . . . . . . . . Damage Inflicted 10769 | . 143 172 . . 2875 4581 1234 1609 155 Guns 2445 | . 143 169 . . 22 974 655 327 155 Cannons 971 | . . . . . 971 . . . . Explosions 7350 | . . . . . 1882 3607 579 1282 . Melee . | . . . . . . . . . . Ramming 3 | . . 3 . . . . . . . Kinetic 1283 | . 143 169 . . 22 650 . 158 141 Thermal 3113 | . . . . . 1839 614 477 169 14 Explosive 6151 | . . . . . 1014 3276 579 1282 . Electromagnetic 219 | . . . . . . 41 178 . . Impact . | . . . . . . . . . . Slashing . | . . . . . . . . . . Piercing . | . . . . . . . . . . Highest Corruption 4 | . . . . . . 3 4 4 4 Average Corruption 3 | . . . . . . 2 3 4 4 Corruption Purged . | . . . . . . . . . . Corruption Blocked . | . . . . . . . . . . Effects 31 | . . . . . . 6 8 13 4 Message Errors 10 | . . . . . . 1 2 6 1 Matter Fused 7 | . . . . . . 3 3 1 . Heat Flow Errors 2 | . . . . . . . . 2 . Energy Discharges 3 | . . . . . . . 2 . 1 Parts Fused 1 | . . . . . . . 1 . . Data Loss (minor) 2 | . . . . . . . . 1 1 Data Loss (major) 1 | . . . . . . . . 1 . Misfires 2 | . . . . . . . . 1 1 Weapon Failures 3 | . . . . . . 2 . 1 . Overload Shots . | . . . . . . . . . . Overflow Damage 372 | . . . . . 291 79 . 2 . Projectiles 202 | . . . . . 202 . . . . Explosions 170 | . . . . . 89 79 . 2 . Melee . | . . . . . . . . . . Knockbacks . | . . . . . . . . . . Impact . | . . . . . . . . . . Kinetic . | . . . . . . . . . . Secondary . | . . . . . . . . . . Self-Inflicted Damage 512 | . . . . . 201 152 9 150 . Shots 23 | . . . . . 8 6 1 8 . Rammed 2 | . . 2 . . . . . . . Targets Rammed 2 | . . 2 . . . . . . . Kicked . | . . . . . . . . . . Crushed . | . . . . . . . . . . Highest Temperature 295 | . 6 58 . . 102 240 37 295 . Average Temperature 55 | . 5 15 . . 36 62 12 162 . Received Heat Transfer 958 | . 24 90 . . 207 173 208 256 . Siege Activations . | . . . . . . . . . . Robots Corrupted . | . . . . . . . . . . Combat Hostiles . | . . . . . . . . . . Parts Fried . | . . . . . . . . . . Impact Corruptions . | . . . . . . . . . . Robots Melted 4 | . . . . . 4 . . . . Combat Hostiles 4 | . . . . . 4 . . . . Parts Melted 7 | . . . . . 6 . 1 . . Heat Transferred 3218 | . . . . . 1760 644 555 222 37 Parts Sabotaged . | . . . . . . . . . . Parts Stolen . | . . . . . . . . . . Parts Stripped . | . . . . . . . . . . Power Chain Reactions . | . . . . . . . . . . Missiles Intercepted . | . . . . . . . . . . Alert | -11 -10 -10 -10 -9 -8 -7 -7 -7 -7 ------- Run | Jun Mat Min Exi Min Mat Fac Low Low Dat Peak Influence 1172 | . 50 70 . . 660 1172 . . . Initial 291 | . . 19 . . . 291 . . . Average 338 | . 37 33 . . 445 700 . . . Maximum Alert Level 4 | . . . . . 2 4 . . . Low Security (%) 49 | 100 100 100 . 100 21 . . . . Level 1 8 | . . . . . 8 21 . . . Level 2 28 | . . . . . 70 31 . . . Level 3 8 | . . . . . . 29 . . . Level 4 5 | . . . . . . 16 . . . Level 5 . | . . . . . . . . . . High Security . | . . . . . . . . . . Max Security . | . . . . . . . . . . Squads Dispatched 10 | . 1 . . . 2 7 . . . Investigation . | . . . . . . . . . . Extermination . | . . . . . . . . . . Reinforcement 7 | . 1 . . . 2 4 . . . Assault 3 | . . . . . . 3 . . . Garrison . | . . . . . . . . . . Intercept . | . . . . . . . . . . Searches Triggered . | . . . . . . . . . . Construction Impeded 1 | . . . . . 1 . . . . Haulers Reinforced . | . . . . . . . . . . Active Scanning Responses . | . . . . . . . . . . Cargo Convoy Interrupts 1 | . . . . . . 1 . . . Stealth | -11 -10 -10 -10 -9 -8 -7 -7 -7 -7 --------- Run | Jun Mat Min Exi Min Mat Fac Low Low Dat Distress Signals 2 | . . . . . 2 . . . . Communications Jammed . | . . . . . . . . . . Distress Signals . | . . . . . . . . . . Times Spotted 101 | . 2 5 . . 28 37 13 10 6 Peak Tracking Total 11 | . 1 3 . . 5 11 4 3 4 Tactical Retreats 2 | . . 1 . . . 1 . . . Traps | -11 -10 -10 -10 -9 -8 -7 -7 -7 -7 ------- Run | Jun Mat Min Exi Min Mat Fac Low Low Dat Traps Triggered 2 | . . . . . . 2 . . . Indirectly . | . . . . . . . . . . Trap Hack Attempts . | . . . . . . . . . . Triggered . | . . . . . . . . . . Disarmed . | . . . . . . . . . . Reprogrammed . | . . . . . . . . . . Reused . | . . . . . . . . . . Traps Extracted . | . . . . . . . . . . Installed . | . . . . . . . . . . Triggered . | . . . . . . . . . . Exploded 1 | . . . 1 . . . . . . Machines | -11 -10 -10 -10 -9 -8 -7 -7 -7 -7 ---------- Run | Jun Mat Min Exi Min Mat Fac Low Low Dat Machines Disabled 11 | . . . . . 2 8 . . 1 Max in Single Turn 6 | . . . . . 1 6 . . 1 Garrison Access 1 | . . . . . . 1 . . . Machines Repaired . | . . . . . . . . . . Machines Sabotaged . | . . . . . . . . . . Overloaded Fab Kills . | . . . . . . . . . . Hacking | -11 -10 -10 -10 -9 -8 -7 -7 -7 -7 --------- Run | Jun Mat Min Exi Min Mat Fac Low Low Dat Machines Accessed 6 | . . . . . 1 1 . . 4 Terminals 1 | . . . . . 1 . . . . Fabricators 1 | . . . . . . 1 . . . Repair Stations . | . . . . . . . . . . Recycling Units . | . . . . . . . . . . Scanalyzers . | . . . . . . . . . . Garrison Access . | . . . . . . . . . . Total Hacks 36 | . . . . . 3 2 . . 31 Successful 34 | . . . . . 1 2 . . 31 Failed 2 | . . . . . 2 . . . . Catastrophic . | . . . . . . . . . . Database Lockouts . | . . . . . . . . . . Manual 1 | . . . 1 . . . . . . Terminals 3 | . . . . . 3 . . . . Fabricators 2 | . . . . . . 2 . . . Repair Stations . | . . . . . . . . . . Recycling Units . | . . . . . . . . . . Scanalyzers . | . . . . . . . . . . Garrison Access . | . . . . . . . . . . Terminal Hacks 32 | . . . . . 1 . . . 31 Record 11 | . . . . . . . . . 11 Part Schematic 12 | . . . . . . . . . 12 Robot Schematic 5 | . . . . . . . . . 5 Prototype ID Bank 3 | . . . . . . . . . 3 Hauler Manifests 1 | . . . . . 1 . . . . Fabricator Hacks 2 | . . . . . . 2 . . . Network Status 1 | . . . . . . 1 . . . Build 1 | . . . . . . 1 . . . Repair Station Hacks . | . . . . . . . . . . Recycling Unit Hacks . | . . . . . . . . . . Scanalyzer . | . . . . . . . . . . Garrison Access Hacks . | . . . . . . . . . . Unauthorized Hacks . | . . . . . . . . . . Terminals . | . . . . . . . . . . Fabricators . | . . . . . . . . . . Repair Stations . | . . . . . . . . . . Recycling Units . | . . . . . . . . . . Scanalyzers . | . . . . . . . . . . Garrison Access . | . . . . . . . . . . Data Cores Recovered 2 | . . . . . 1 1 . . . Used . | . . . . . . . . . . Hacking Detections 2 | . . . . . 1 1 . . . Full Trace Events . | . . . . . . . . . . Feedback Events . | . . . . . . . . . . Feedback Blocked . | . . . . . . . . . . Robot Schematics Acquired 5 | . . . . . . . . . 5 Robots Built . | . . . . . . . . . . Authchips . | . . . . . . . . . . Time . | . . . . . . . . . . Total Robot Build Rating . | . . . . . . . . . . Part Schematics Acquired 12 | . . . . . . . . . 12 Parts Built 2 | . . . . . . 2 . . . Authchips . | . . . . . . . . . . Time 117 | . . . . . . 117 . . . Total Part Build Rating 14 | . . . . . . 14 . . . Parts Repaired . | . . . . . . . . . . Time . | . . . . . . . . . . Parts Recycled . | . . . . . . . . . . Recycled Matter . | . . . . . . . . . . Retrieved Matter . | . . . . . . . . . . Retrieved Components . | . . . . . . . . . . Parts Scanalyzed . | . . . . . . . . . . Part Schematics Acquired . | . . . . . . . . . . Parts Damaged . | . . . . . . . . . . Bothacking | -11 -10 -10 -10 -9 -8 -7 -7 -7 -7 ------------ Run | Jun Mat Min Exi Min Mat Fac Low Low Dat Used RIF Installer . | . . . . . . . . . . Robots Hacked . | . . . . . . . . . . Non-combat . | . . . . . . . . . . Combat . | . . . . . . . . . . Robot Hacks Applied . | . . . . . . . . . . Relay Couplers Released 2 | . . . . . . 2 . . . Machine Destruction 2 | . . . . . . 2 . . . Fabnet Peak Effective % . | . . . . . . . . . . Robots Rewired . | . . . . . . . . . . Allies Hacked . | . . . . . . . . . . Hacks Repelled . | . . . . . . . . . . Allies | -11 -10 -10 -10 -9 -8 -7 -7 -7 -7 -------- Run | Jun Mat Min Exi Min Mat Fac Low Low Dat Total Allies 4 | . . . . 1 . 3 . . . Largest Group 3 | . . . . 1 1 3 . . . Highest-Rated Group 93 | . . . . 31 31 93 . . . Highest-Rated Ally 31 | . . . . 31 31 31 . . . Total Orders . | . . . . . . . . . . Ally Attacks 40 | . . . . . 11 29 . . . Total Damage 576 | . . . . . 101 475 . . . Kills 6 | . . . . . 2 4 . . . Allies Corrupted . | . . . . . . . . . . Allies Melted . | . . . . . . . . . . Intel | -11 -10 -10 -10 -9 -8 -7 -7 -7 -7 ------- Run | Jun Mat Min Exi Min Mat Fac Low Low Dat Robot Analysis Total . | . . . . . . . . . . Derelict Logs Recovered 2 | . . 1 . 1 . . . . . Drone Launches . | . . . . . . . . . . Drone Recoveries . | . . . . . . . . . . Exploration | -11 -10 -10 -10 -9 -8 -7 -7 -7 -7 ------------- Run | Jun Mat Min Exi Min Mat Fac Low Low Dat Turns Passed 4271 | 2 282 741 376 240 776 857 440 442 115 Spaces Moved 2697 | 2 191 426 228 150 404 603 359 267 67 Core . | . . . . . . . . . . Treads 1130 | . 25 426 228 150 185 . . 49 67 Legs 168 | 2 166 . . . . . . . . Wheels 1399 | . . . . . 219 603 359 218 . Hover . | . . . . . . . . . . Flight . | . . . . . . . . . . Fastest Speed 100 | 120 120 160 160 160 115 100 100 100 145 Average Speed 131 | 120 125 160 160 160 159 103 100 108 145 Slowest Speed 240 | 120 160 160 160 160 240 115 115 145 145 Overloaded Moves . | . . . . . . . . . . Propulsion Burnouts . | . . . . . . . . . . Robots Hopped . | . . . . . . . . . . Cave-ins Triggered . | . . . . . . . . . . Exploration Rate (%) 47 | 2 36 88 61 42 39 17 64 53 76 Regions Visited 9 Branch Regions 6 Pre-discovered Areas 1 | . . . . . . . . . 1 Known Exits Taken . | . . . . . . . . . . Unknown Exits Taken 9 | 1 1 1 1 1 1 1 1 1 . Scrap Searched 3 | . . 1 . 1 . . 1 . . Spaces Dug . | . . . . . . . . . . Terrain Destroyed 785 | . . . . . 278 164 169 174 . Melee . | . . . . . . . . . . Projectile 10 | . . . . . 3 4 3 . . AOE 775 | . . . . . 275 160 166 174 . Terrain Rammed . | . . . . . . . . . . Walls Destroyed . | . . . . . . . . . . Machines Disabled . | . . . . . . . . . . Actions | -11 -10 -10 -10 -9 -8 -7 -7 -7 -7 --------- Run | Jun Mat Min Exi Min Mat Fac Low Low Dat Total 3138 | 1 217 461 240 150 482 743 386 379 79 Wait 151 | . . 19 . . 12 35 . 84 1 Move 2688 | 1 190 425 227 149 403 602 358 266 67 Hop . | . . . . . . . . . . Pick Up 40 | . 7 2 . 1 16 12 1 1 . Fast Attach 10 | . . . 5 . . 5 . . . Attach 35 | . 3 . . . 14 6 3 6 3 Detach 5 | . . . . . 5 . . . . Swap 12 | . . . 1 . 3 7 1 . . Drop 32 | . 6 . 7 . 7 10 . . 2 Fire 162 | . 11 13 . . 22 66 22 22 6 Melee . | . . . . . . . . . . Ram . | . . . . . . . . . . Kick . | . . . . . . . . . . Crush 2 | . . 2 . . . . . . . Escape Stasis . | . . . . . . . . . . Rewire 1 | . . . . . . . 1 . . Trap . | . . . . . . . . . . Miscellaneous . | . . . . . . . . . . Route ------- -11/Junkyard -10/Materials -10/Mines (discovered 3 exits: [*Mat x2] / *Exi) -10/Exiles -9/Mines -8/Materials -7/Factory (discovered 2 exits: [*Fac] / [*Low]) -7/Lower Caves -7/Lower Caves -7/Data Miner (discovered 1 exit: [*Pro]) History --------- Turn | Location | Event 1 | -11/Junkyard | Discovered new exit (range 1) 3 | -11/Junkyard | Entered Materials 272 | -10/Materials | Discovered new exit (range 6) 285 | -10/Materials | Entered Mines 300 | -10/Mines | Build established: Mutant 313 | -10/Mines | Met a Derelict bent on vengeance 424 | -10/Mines | Discovered new exit (range 5) 457 | -10/Mines | Found a hidden stash of uninstalled traps 468 | -10/Mines | Discovered new exit (range 9) 940 | -10/Mines | Learned Materials garrison access intel 943 | -10/Mines | A weapon hastily lodged in a ceiling crevice suddenly fell to the ground 1020 | -10/Mines | Deemed a non-threat by the Exiles lab entrance 1020 | -10/Mines | Discovered new exit (range 5) 1026 | -10/Mines | Entered Exiles 1066 | -10/Exiles | Met 8R-AWN 1094 | -10/Exiles | Met EX-HEX 1137 | -10/Exiles | Met EX-BIN 1156 | -10/Exiles | Aligned with FarCom system 1158 | -10/Exiles | Given EX-Vault access code 1194 | -10/Exiles | Opened EX-Vault 1201 | -10/Exiles | Found Prototype Processor 1201 | -10/Exiles | Identified 0b10 Alert Chip 1207 | -10/Exiles | Found Prototype Energy Cannon 1207 | -10/Exiles | Identified YOLO Cannon 1212 | -10/Exiles | Found Prototype Energy Gun 1212 | -10/Exiles | Identified AWS/Thermal 1253 | -10/Exiles | Warned to stay clear of 0b10 Research branches 1268 | -10/Exiles | Exiles lab attacked by MAIN.C 1382 | -10/Exiles | Discovered new exit (range 14) 1402 | -10/Exiles | Left Exiles lab with YOLO Cannon 1402 | -10/Exiles | Entered Mines 1438 | -9/Mines | Learned location of 1 exit from Proximity Caves 1580 | -9/Mines | Received a Mining Laser from a helpful Derelict 1632 | -9/Mines | Discovered new exit (range 5) 1642 | -9/Mines | Entered Materials 1642 | -8/Materials | Accompanied by 1 ally 1642 | -8/Materials | Evolved 4 slots: Power x1, Propulsion x1, Utility x2 1643 | -8/Materials | Loaded intel: 1 garrison access location 1740 | -8/Materials | Found Prototype Launcher 1741 | -8/Materials | Identified Rocket Array 1744 | -8/Materials | Found Rocket Array 2376 | -8/Materials | Discovered new exit (range 16) 2418 | -8/Materials | Entered Factory 2418 | -7/Factory | Evolved 2 slots: Propulsion x1, Utility x1 2561 | -7/Factory | Allied Derelicts emerged from ambush trap array 2657 | -7/Factory | Fabricated Adv. Medium Treads? 2818 | -7/Factory | First assault squad dispatched 2843 | -7/Factory | Build established: Hacker-Mutant 3058 | -7/Factory | Cargo convoy interrupted 3096 | -7/Factory | Discovered new exit (range 14) 3108 | -7/Factory | Destroyed 15 combat bots 3112 | -7/Factory | Lost 4 parts (1p2u1w) 3257 | -7/Factory | Discovered new exit (range 5) 3275 | -7/Factory | Entered Lower Caves 3334 | -7/Lower Caves | Lost 3 parts (1p1u1w) 3354 | -7/Lower Caves | Ambushed by research squad 3389 | -7/Lower Caves | Build established: Mutant 3695 | -7/Lower Caves | Discovered new exit (range 8) 3699 | -7/Lower Caves | Attracted the attention of an 0b10 checkpoint 3715 | -7/Lower Caves | Entered another Lower Caves area 3736 | -7/Lower Caves | Destroyed 7 combat bots 3745 | -7/Lower Caves | Attracted the attention of an 0b10 checkpoint 4039 | -7/Lower Caves | Core integrity fell below 50% 4071 | -7/Lower Caves | Lost 3 parts (2n1w) 4148 | -7/Lower Caves | Discovered new exit (range 5) 4157 | -7/Lower Caves | Entered Data Miner 4157 | -7/Data Miner | Discovered new exit (range 6) 4185 | -7/Data Miner | Met Data Miner 4214 | -7/Data Miner | Learned location of Section 7 (-2) 4214 | -7/Data Miner | Acquired the access code to Warlord's prototype stash 4239 | -7/Data Miner | Received God Mode back door access code from Data Miner 4245 | -7/Data Miner | Data Conduit disabled 4264 | -7/Data Miner | Core integrity fell below 20% 4272 | -7/Data Miner | Destroyed by Enhanced Grunt with Neutron Cannon Last Messages --------------- 04221_ Connecting with ORACLE Interface... 04222_ System corrupted: Component data lost. Data Miner: I've just received further instructions. God Mode is nearly complete and we think you might be able to put it to better use than Warlord, so if you see an opportunity, hack it and enter \\HNKK to gain control via the back door I've installed. Now off with you. 04245_ System corrupted: FCS attempts to trigger Gauss Rifle. 04245_ System corrupted: Gauss Rifle misfires. 04245_ Slug penetrates Data Conduit. 04245_ Data Conduit disabled. 04245_ Data Miner disappears through a trap door. 04249_ Slug penetrates Enhanced Grunt. 04261_ Imp. Cooling System destroyed. 04261_ Slug penetrates Enhanced Grunt. 04265_ Arm. Huge Wheel destroyed. 04266_ Gauss Rifle destroyed. 04268_ Adv. Medium Treads destroyed. 04270_ Dropped Com. Matter Pod. 04271_ Dropped Lrg. Storage Unit. Map ----- +----------------------------------------------------+ | | | | | | | | | | | | | | | | | | | | | | | | | | | | | ?????????????????????????????????? | | ?????????????????????????????????? | | ?????????????????????????????????? | | ?????????????????????????????????? | | ?????????????????????????????????? | | ??????###############????????????? | | ?????"""""""""""""""######???????? | | ????"""""""" """"""""# ####### | | ????""""""""" g | | ????""""" g | | ???""""""! g | | ???""""""@ g | | ???"""" | | ???""""""" """""""""" | | ???"""""""" """"######## | | ???#""""""" """""###??????? | | ????#"""""""" "#####????????? | | ??????######"## "#????????????? | | ???????????#"### "#????????????? | | ???????????#"### "#????????????? | | ???????????#"## "#????????????? | | ????????????"## "#????????????? | | ?????????????# "#????????????? | | ?????????????### "#????????????? | | ???????????????# "##???????????? | | ??????????????## ""#???????????? | | ???????????#?## ""#???????????? | | ?????????"##"#"X ""#???????????? | | ?????????"""""" "####????????? | | ?????????#""""" X"""""????????? | | ?????????###"#"X "##"#????????? | | ???????????#?## X""""#????????? | | ??????????????## "##"#????????? | | ???????????????#######???????????? | | ?????????????????????????????????? | | ?????????????????????????????????? | +----------------------------------------------------+ Best States ------------- Heat Dissipation 61 Energy Generation 29 Energy Capacity 750 Matter Stores 443 Matter Capacity 450 Sight Range 16 Terrain Scan Density 10 Armor Coverage 600 Evasion (%) 55 Targeting Accuracy 6 Recoil Reduction 2 Offensive Hacking 20 Item Schematics ----------------- Combat Drone Bay | -7/Data Miner | Free Lgt. Regenerative Plating | -7/Data Miner | Free Biomechanical Wings | -7/Data Miner | Free Exp. Power Shielding | -7/Data Miner | Free Antimatter Cannon | -7/Data Miner | Free Nuclear Pulse Array | -7/Data Miner | Free Adv. Hacking Suite | -7/Data Miner | Free Lrn. Proton Cannon | -7/Data Miner | Free Launcher Loader | -7/Data Miner | Free Adv. Shield Generator | -7/Data Miner | Free Variable Charge Gun | -7/Data Miner | Free Impulse Thruster | -7/Data Miner | Free Robot Schematics ------------------ H-55 Commando | -7/Data Miner | Free W-25 Informer | -7/Data Miner | Free R-10 Processor | -7/Data Miner | Free A-15 Conveyor | -7/Data Miner | Free X-72 Disruptor | -7/Data Miner | Free Fabricated ------------ Adv. Medium Treads | x2 | -7/Factory | Preloaded Alien Tech Used ----------------- None Achievements -------------- None Challenges ------------ None Game ------ Seed ProcessingCorruptionBoregun Manual? 0 Play Time 00:32:16 Cumulative 81.6 hours Start 2023.07.05 @ 22:30:19 End 2023.07.05 @ 23:00:34 Sessions 1 Manual Loads 0 Difficulty Rogue Special Mode None Game No. 125 Rogue 125 Adventurer 0 Explorer 0 Win Type - Total 0 Types 0/0/0/0/0/0/0/0/0 Lore% 30 Gallery% 52 Achievement% 35 Wizard Run 0 Options --------- ASCII 0 Keyboard 0 Movement Mouse Keybinds 0 Fullscreen 2 Font 18/SmallcapsGlow Map View 76x50 Tactical HUD 1 Map Filters NONE Filters NONE Steam 1 RUN: 4625c836-55f2-4540-bcd3-6b2f1fba8b6e